[Event "Titled Tuesday Blitz October 12 2021"]
[White "Ozen, Bahadir"]
[Black "Van Foreest, Jorden"]
[WhiteFideId "6337058"]
[BlackFideId "1039784"]
[WhiteElo "2503"]
[BlackElo "2600"]
[Result "0-1"]
[Round "04"]
[TimeControl "180+1"]
[Date "2021.10.12"]
[WhiteClock "0:00:07"]
[BlackClock "0:00:42"]

1. d4 {[%clk 0:03:00]}  a6 {[%clk 0:03:00]} 2. e4 {[%clk 0:03:00]}  b5 {[%clk 0:03:01]} 3. Nf3 {[%clk 0:02:58]}  Bb7 {[%clk 0:02:57]} 4. Bd3 {[%clk 0:02:57]}  e6 {[%clk 0:02:57]} 5. O-O {[%clk 0:02:56]}  c5 {[%clk 0:02:56]} 6. c3 {[%clk 0:02:56]}  Be7 {[%clk 0:02:53]} 7. a4 {[%clk 0:02:50]}  cxd4 {[%clk 0:02:38]} 8. axb5 {[%clk 0:02:33]}  axb5 {[%clk 0:02:33]} 9. Rxa8 {[%clk 0:02:32]}  Bxa8 {[%clk 0:02:34]} 10. cxd4 {[%clk 0:02:28]}  Nf6 {[%clk 0:02:34]} 11. e5 {[%clk 0:02:15]}  Nd5 {[%clk 0:02:33]} 12. Bxb5 {[%clk 0:02:15]}  O-O {[%clk 0:02:33]} 13. Nc3 {[%clk 0:02:07]}  Qa5 {[%clk 0:02:29]} 14. Qa4 {[%clk 0:01:44]}  Qxa4 {[%clk 0:02:25]} 15. Bxa4 {[%clk 0:01:44]}  Rc8 {[%clk 0:02:23]} 16. Bd2 {[%clk 0:01:40]}  Nb6 {[%clk 0:02:22]} 17. Bb5 {[%clk 0:01:34]}  Nc4 {[%clk 0:02:16]} 18. Bc1 {[%clk 0:01:29]}  d6 {[%clk 0:02:14]} 19. Bxc4 {[%clk 0:01:22]}  Rxc4 {[%clk 0:02:12]} 20. exd6 {[%clk 0:01:23]}  Bxd6 {[%clk 0:02:09]} 21. Be3 {[%clk 0:01:23]}  Rb4 {[%clk 0:02:04]} 22. Ra1 {[%clk 0:01:23]}  Bb7 {[%clk 0:02:03]} 23. Ra2 {[%clk 0:01:07]}  Nd7 {[%clk 0:02:00]} 24. Ne1 {[%clk 0:01:01]}  h6 {[%clk 0:01:38]} 25. Nd3 {[%clk 0:01:01]}  Rc4 {[%clk 0:01:36]} 26. f3 {[%clk 0:01:01]}  Nf6 {[%clk 0:01:31]} 27. Ra7 {[%clk 0:01:00]}  Nd5 {[%clk 0:01:24]} 28. Rxb7 {[%clk 0:00:54]}  Nxe3 {[%clk 0:01:23]} 29. Kf2 {[%clk 0:00:49]}  Nf5 {[%clk 0:01:21]} 30. g4 {[%clk 0:00:29]}  Nxd4 {[%clk 0:01:16]} 31. Rd7 {[%clk 0:00:29]}  Bxh2 {[%clk 0:01:12]} 32. Rd8+ {[%clk 0:00:29]}  Kh7 {[%clk 0:01:10]} 33. Rd7 {[%clk 0:00:29]}  f5 {[%clk 0:01:07]} 34. gxf5 {[%clk 0:00:28]}  Nxf5 {[%clk 0:01:04]} 35. Ne4 {[%clk 0:00:25]}  Rc2+ {[%clk 0:01:03]} 36. Ke1 {[%clk 0:00:25]}  h5 {[%clk 0:00:57]} 37. b4 {[%clk 0:00:25]}  h4 {[%clk 0:00:57]} 38. b5 {[%clk 0:00:24]}  h3 {[%clk 0:00:56]} 39. Ng5+ {[%clk 0:00:24]}  Kg6 {[%clk 0:00:55]} 40. Nxh3 {[%clk 0:00:22]}  Bg3+ {[%clk 0:00:46]} 41. Kf1 {[%clk 0:00:23]}  Ne3+ {[%clk 0:00:45]} 42. Kg1 {[%clk 0:00:23]}  Rg2+ {[%clk 0:00:45]} 43. Kh1 {[%clk 0:00:24]}  Rh2+ {[%clk 0:00:46]} 44. Kg1 {[%clk 0:00:24]}  Rxh3 {[%clk 0:00:47]} 45. b6 {[%clk 0:00:22]}  Rh2 {[%clk 0:00:47]} 46. b7 {[%clk 0:00:20]}  Rg2+ {[%clk 0:00:46]} 47. Kh1 {[%clk 0:00:20]}  Ra2 {[%clk 0:00:46]} 48. Nf2 {[%clk 0:00:08]}  Ra1+ {[%clk 0:00:42]} 49. Nd1 {[%clk 0:00:07]}  Rxd1+ {[%clk 0:00:42]} 0-1


[Site "https://www.chess.com"]

[Event "Titled Tuesday Blitz October 12 2021"]
[White "Rozen, Eytan"]
[Black "Gupta, Abhijeet"]
[WhiteFideId "2816750"]
[BlackFideId "5010608"]
[WhiteElo "2115"]
[BlackElo "2549"]
[Result "0-1"]
[Round "04"]
[TimeControl "180+1"]
[Date "2021.10.12"]
[WhiteClock "0:00:18"]
[BlackClock "0:01:28"]

1. c4 {[%clk 0:02:17]}  Nf6 {[%clk 0:02:59]} 2. Nc3 {[%clk 0:02:09]}  e5 {[%clk 0:02:57]} 3. Nf3 {[%clk 0:02:06]}  Nc6 {[%clk 0:02:57]} 4. d3 {[%clk 0:02:05]}  Bb4 {[%clk 0:02:56]} 5. e4 {[%clk 0:02:04]}  d6 {[%clk 0:02:51]} 6. Be2 {[%clk 0:02:03]}  O-O {[%clk 0:02:37]} 7. O-O {[%clk 0:02:03]}  a5 {[%clk 0:02:26]} 8. h3 {[%clk 0:01:46]}  Bc5 {[%clk 0:02:24]} 9. Be3 {[%clk 0:01:46]}  b6 {[%clk 0:02:17]} 10. Nd5 {[%clk 0:01:36]}  h6 {[%clk 0:02:17]} 11. a3 {[%clk 0:01:30]}  Re8 {[%clk 0:02:09]} 12. Qd2 {[%clk 0:01:29]}  a4 {[%clk 0:02:05]} 13. Bxh6 {[%clk 0:00:47]}  gxh6 {[%clk 0:01:58]} 14. Qxh6 {[%clk 0:00:48]}  Nh7 {[%clk 0:01:59]} 15. Kh1 {[%clk 0:00:34]}  Re6 {[%clk 0:01:55]} 16. Qh5 {[%clk 0:00:33]}  Kg7 {[%clk 0:01:48]} 17. Nh4 {[%clk 0:00:23]}  Rh6 {[%clk 0:01:39]} 18. Nf5+ {[%clk 0:00:23]}  Bxf5 {[%clk 0:01:39]} 19. Qxf5 {[%clk 0:00:24]}  Nd4 {[%clk 0:01:37]} 20. Qg4+ {[%clk 0:00:24]}  Rg6 {[%clk 0:01:37]} 21. Qh5 {[%clk 0:00:25]}  Rg5 {[%clk 0:01:33]} 22. Qh4 {[%clk 0:00:25]}  Nxe2 {[%clk 0:01:30]} 23. f4 {[%clk 0:00:18]}  Ng3+ {[%clk 0:01:28]} 0-1


[Site "https://www.chess.com"]

[Event "Titled Tuesday Blitz October 12 2021"]
[White "Shuvalov, Evgenij"]
[Black "Shipov, Sergei"]
[WhiteFideId "4187237"]
[BlackFideId "4113624"]
[WhiteElo "2129"]
[BlackElo "2834"]
[Result "0-1"]
[Round "04"]
[TimeControl "180+1"]
[Date "2021.10.12"]
[WhiteClock "0:00:02"]
[BlackClock "0:00:17"]

1. Nf3 {[%clk 0:03:00]}  d5 {[%clk 0:02:58]} 2. c4 {[%clk 0:03:00]}  e6 {[%clk 0:02:58]} 3. g3 {[%clk 0:03:00]}  dxc4 {[%clk 0:02:58]} 4. Bg2 {[%clk 0:02:59]}  c6 {[%clk 0:02:56]} 5. O-O {[%clk 0:02:58]}  b5 {[%clk 0:02:56]} 6. d3 {[%clk 0:02:54]}  cxd3 {[%clk 0:02:55]} 7. Ne5 {[%clk 0:02:55]}  Bb7 {[%clk 0:02:51]} 8. Nxd3 {[%clk 0:02:52]}  Nf6 {[%clk 0:02:48]} 9. a4 {[%clk 0:02:50]}  a6 {[%clk 0:02:43]} 10. Nd2 {[%clk 0:02:38]}  Nbd7 {[%clk 0:02:42]} 11. Nb3 {[%clk 0:02:37]}  Be7 {[%clk 0:02:18]} 12. Bd2 {[%clk 0:02:30]}  O-O {[%clk 0:02:04]} 13. Na5 {[%clk 0:02:28]}  Qb6 {[%clk 0:02:02]} 14. Nxb7 {[%clk 0:02:24]}  Qxb7 {[%clk 0:02:02]} 15. Qc2 {[%clk 0:02:18]}  Rfc8 {[%clk 0:02:01]} 16. Rfc1 {[%clk 0:02:18]}  Nd5 {[%clk 0:01:56]} 17. e4 {[%clk 0:02:15]}  N5b6 {[%clk 0:01:55]} 18. a5 {[%clk 0:02:09]}  Nc4 {[%clk 0:01:53]} 19. Bc3 {[%clk 0:02:05]}  Qc7 {[%clk 0:00:42]} 20. b3 {[%clk 0:01:46]}  Nce5 {[%clk 0:00:41]} 21. Nxe5 {[%clk 0:00:37]}  Nxe5 {[%clk 0:00:41]} 22. f4 {[%clk 0:00:36]}  Nd7 {[%clk 0:00:40]} 23. e5 {[%clk 0:00:26]}  Rab8 {[%clk 0:00:39]} 24. Be4 {[%clk 0:00:16]}  g6 {[%clk 0:00:39]} 25. h4 {[%clk 0:00:15]}  Nc5 {[%clk 0:00:33]} 26. Bf3 {[%clk 0:00:14]}  Rd8 {[%clk 0:00:33]} 27. Rd1 {[%clk 0:00:13]}  Rxd1+ {[%clk 0:00:33]} 28. Rxd1 {[%clk 0:00:14]}  Rd8 {[%clk 0:00:33]} 29. h5 {[%clk 0:00:14]}  Rxd1+ {[%clk 0:00:27]} 30. Qxd1 {[%clk 0:00:15]}  Nd7 {[%clk 0:00:26]} 31. hxg6 {[%clk 0:00:14]}  hxg6 {[%clk 0:00:26]} 32. Be4 {[%clk 0:00:12]}  c5 {[%clk 0:00:23]} 33. Kg2 {[%clk 0:00:09]}  Nf8 {[%clk 0:00:19]} 34. Qd3 {[%clk 0:00:07]}  c4 {[%clk 0:00:18]} 35. bxc4 {[%clk 0:00:07]}  bxc4 {[%clk 0:00:19]} 36. Qd4 {[%clk 0:00:07]}  Nd7 {[%clk 0:00:19]} 37. Qd2 {[%clk 0:00:06]}  Nc5 {[%clk 0:00:18]} 38. Bc2 {[%clk 0:00:05]}  Qc6+ {[%clk 0:00:18]} 39. Kh2 {[%clk 0:00:05]}  Qf3 {[%clk 0:00:18]} 40. Qg2 {[%clk 0:00:02]}  Qxc3 {[%clk 0:00:17]} 0-1


[Site "https://www.chess.com"]

[Event "Titled Tuesday Blitz October 12 2021"]
[White "Sviridov, Valery"]
[Black "Gaehwiler, Gabriel"]
[WhiteFideId "4120680"]
[BlackFideId "1314530"]
[WhiteElo "2454"]
[BlackElo "2320"]
[Result "1/2-1/2"]
[Round "04"]
[TimeControl "180+1"]
[Date "2021.10.12"]
[WhiteClock "0:01:25"]
[BlackClock "0:00:42"]

1. Nf3 {[%clk 0:03:00]}  Nf6 {[%clk 0:02:58]} 2. g3 {[%clk 0:03:01]}  b6 {[%clk 0:02:58]} 3. Bg2 {[%clk 0:03:01]}  Bb7 {[%clk 0:02:58]} 4. O-O {[%clk 0:03:01]}  g6 {[%clk 0:02:58]} 5. c4 {[%clk 0:03:02]}  Bg7 {[%clk 0:02:58]} 6. Nc3 {[%clk 0:03:02]}  O-O {[%clk 0:02:58]} 7. d4 {[%clk 0:03:02]}  Ne4 {[%clk 0:02:58]} 8. Qd3 {[%clk 0:03:03]}  Nxc3 {[%clk 0:02:57]} 9. Qxc3 {[%clk 0:03:03]}  c5 {[%clk 0:02:53]} 10. Be3 {[%clk 0:03:03]}  Bxf3 {[%clk 0:02:53]} 11. Bxf3 {[%clk 0:03:03]}  Nc6 {[%clk 0:02:53]} 12. Bxc6 {[%clk 0:03:03]}  dxc6 {[%clk 0:02:54]} 13. Rad1 {[%clk 0:03:04]}  Qd7 {[%clk 0:02:51]} 14. Qd3 {[%clk 0:02:48]}  cxd4 {[%clk 0:02:43]} 15. Bxd4 {[%clk 0:02:49]}  Rfd8 {[%clk 0:02:43]} 16. Bxg7 {[%clk 0:02:47]}  Qxd3 {[%clk 0:02:43]} 17. Rxd3 {[%clk 0:02:47]}  Rxd3 {[%clk 0:02:42]} 18. exd3 {[%clk 0:02:47]}  Kxg7 {[%clk 0:02:43]} 19. Rd1 {[%clk 0:02:37]}  Rd8 {[%clk 0:02:42]} 20. Kf1 {[%clk 0:02:37]}  e5 {[%clk 0:02:41]} 21. Ke2 {[%clk 0:02:36]}  Kf6 {[%clk 0:02:41]} 22. b4 {[%clk 0:02:36]}  Ke6 {[%clk 0:02:40]} 23. a4 {[%clk 0:02:36]}  f5 {[%clk 0:02:30]} 24. b5 {[%clk 0:02:35]}  c5 {[%clk 0:02:25]} 25. a5 {[%clk 0:02:33]}  Rd4 {[%clk 0:02:24]} 26. axb6 {[%clk 0:02:31]}  axb6 {[%clk 0:02:25]} 27. Ra1 {[%clk 0:01:49]}  e4 {[%clk 0:02:00]} 28. dxe4 {[%clk 0:01:50]}  fxe4 {[%clk 0:01:51]} 29. Ra6 {[%clk 0:01:50]}  Rxc4 {[%clk 0:01:45]} 30. Rxb6+ {[%clk 0:01:48]}  Kd5 {[%clk 0:01:44]} 31. Rb7 {[%clk 0:01:48]}  Rb4 {[%clk 0:01:43]} 32. Rd7+ {[%clk 0:01:45]}  Ke5 {[%clk 0:01:38]} 33. Rxh7 {[%clk 0:01:46]}  Rxb5 {[%clk 0:01:38]} 34. Rg7 {[%clk 0:01:44]}  Rb2+ {[%clk 0:01:38]} 35. Ke3 {[%clk 0:01:44]}  Rb3+ {[%clk 0:01:31]} 36. Kd2 {[%clk 0:01:43]}  c4 {[%clk 0:01:15]} 37. Rxg6 {[%clk 0:01:40]}  Rb2+ {[%clk 0:01:13]} 38. Ke3 {[%clk 0:01:40]}  Rb3+ {[%clk 0:01:10]} 39. Ke2 {[%clk 0:01:41]}  Rb2+ {[%clk 0:01:10]} 40. Ke3 {[%clk 0:01:39]}  Rb3+ {[%clk 0:01:09]} 41. Kd2 {[%clk 0:01:40]}  Rb2+ {[%clk 0:01:07]} 42. Kc3 {[%clk 0:01:29]}  Rxf2 {[%clk 0:01:06]} 43. Rg5+ {[%clk 0:01:29]}  Kf6 {[%clk 0:01:01]} 44. h4 {[%clk 0:01:27]}  e3 {[%clk 0:00:59]} 45. Rg8 {[%clk 0:01:26]}  Kf7 {[%clk 0:00:46]} 46. Rg4 {[%clk 0:01:25]}  e2 {[%clk 0:00:41]} 47. Re4 {[%clk 0:01:25]}  Rf3+ {[%clk 0:00:41]} 48. Kxc4 {[%clk 0:01:25]}  Rxg3 {[%clk 0:00:42]} 49. Rxe2 {[%clk 0:01:25]}  Rg4+ {[%clk 0:00:42]} 50. Kd5 {[%clk 0:01:25]}  Rxh4 {[%clk 0:00:43]} 51. Re4 {[%clk 0:01:24]}  Rxe4 {[%clk 0:00:42]} 52. Kxe4 {[%clk 0:01:25]} 1/2-1/2


[Site "https://www.chess.com"]

[Event "Titled Tuesday Blitz October 12 2021"]
[White "Terry, Renato"]
[Black "Pichot, Alan"]
[WhiteFideId "3803457"]
[BlackFideId "110973"]
[WhiteElo "2577"]
[BlackElo "2600"]
[Result "1/2-1/2"]
[Round "04"]
[TimeControl "180+1"]
[Date "2021.10.12"]
[WhiteClock "0:00:06"]
[BlackClock "0:00:35"]

1. d4 {[%clk 0:02:59]}  Nf6 {[%clk 0:03:00]} 2. Bg5 {[%clk 0:02:59]}  d5 {[%clk 0:02:59]} 3. Bxf6 {[%clk 0:02:59]}  gxf6 {[%clk 0:02:59]} 4. e3 {[%clk 0:02:59]}  c6 {[%clk 0:02:57]} 5. c4 {[%clk 0:02:53]}  Bf5 {[%clk 0:02:53]} 6. Qb3 {[%clk 0:02:48]}  Qb6 {[%clk 0:02:53]} 7. cxd5 {[%clk 0:02:40]}  cxd5 {[%clk 0:02:42]} 8. Qxd5 {[%clk 0:02:25]}  Qxb2 {[%clk 0:01:56]} 9. Qxf5 {[%clk 0:01:50]}  Nc6 {[%clk 0:01:56]} 10. Qb5 {[%clk 0:01:45]}  Qxa1 {[%clk 0:01:52]} 11. Qxb7 {[%clk 0:01:45]}  Rb8 {[%clk 0:01:51]} 12. Qxc6+ {[%clk 0:01:45]}  Kd8 {[%clk 0:01:51]} 13. Bd3 {[%clk 0:01:45]}  Rxb1+ {[%clk 0:01:48]} 14. Bxb1 {[%clk 0:01:45]}  Qxb1+ {[%clk 0:01:49]} 15. Ke2 {[%clk 0:01:42]}  Qxa2+ {[%clk 0:01:13]} 16. Kf3 {[%clk 0:01:42]}  Qa1 {[%clk 0:01:08]} 17. g3 {[%clk 0:01:24]}  Qf1 {[%clk 0:01:07]} 18. Qa8+ {[%clk 0:01:18]}  Kd7 {[%clk 0:01:08]} 19. Qxa7+ {[%clk 0:01:19]}  Kd8 {[%clk 0:01:08]} 20. Qa5+ {[%clk 0:01:09]}  Kd7 {[%clk 0:01:07]} 21. Qa4+ {[%clk 0:01:09]}  Kd8 {[%clk 0:01:07]} 22. Qa2 {[%clk 0:00:30]}  e6 {[%clk 0:01:07]} 23. Qe2 {[%clk 0:00:30]}  Qb1 {[%clk 0:00:50]} 24. Kg2 {[%clk 0:00:29]}  Bd6 {[%clk 0:00:51]} 25. Nf3 {[%clk 0:00:25]}  Qe4 {[%clk 0:00:51]} 26. Ra1 {[%clk 0:00:22]}  Ke7 {[%clk 0:00:50]} 27. Ra7+ {[%clk 0:00:22]}  Kf8 {[%clk 0:00:50]} 28. Qa6 {[%clk 0:00:22]}  Be7 {[%clk 0:00:44]} 29. Qb7 {[%clk 0:00:13]}  Qxb7 {[%clk 0:00:40]} 30. Rxb7 {[%clk 0:00:14]}  Rg8 {[%clk 0:00:40]} 31. Nd2 {[%clk 0:00:06]}  Rg5 {[%clk 0:00:39]} 32. Ne4 {[%clk 0:00:04]}  Ra5 {[%clk 0:00:37]} 33. Rb8+ {[%clk 0:00:05]}  Kg7 {[%clk 0:00:38]} 34. Rb7 {[%clk 0:00:06]}  Kf8 {[%clk 0:00:38]} 35. Rb2 {[%clk 0:00:02]}  f5 {[%clk 0:00:38]} 36. Nd2 {[%clk 0:00:02]}  Ra4 {[%clk 0:00:38]} 37. Nf3 {[%clk 0:00:03]}  Bf6 {[%clk 0:00:38]} 38. Re2 {[%clk 0:00:04]}  Kg7 {[%clk 0:00:38]} 39. Rc2 {[%clk 0:00:04]}  Ra3 {[%clk 0:00:37]} 40. Nd2 {[%clk 0:00:04]}  Ra4 {[%clk 0:00:36]} 41. Nc4 {[%clk 0:00:04]}  Ra6 {[%clk 0:00:36]} 42. Kf3 {[%clk 0:00:05]}  Rc6 {[%clk 0:00:36]} 43. Ke2 {[%clk 0:00:05]}  Ra6 {[%clk 0:00:36]} 44. h4 {[%clk 0:00:05]}  h6 {[%clk 0:00:36]} 45. Kd3 {[%clk 0:00:06]}  Ra1 {[%clk 0:00:36]} 46. Rb2 {[%clk 0:00:06]}  Ra6 {[%clk 0:00:35]} 47. Rb7 {[%clk 0:00:05]}  Kf8 {[%clk 0:00:35]} 48. Rb8+ {[%clk 0:00:05]}  Kg7 {[%clk 0:00:35]} 49. Rb7 {[%clk 0:00:06]}  Kf8 {[%clk 0:00:36]} 50. Ke2 {[%clk 0:00:06]}  Rc6 {[%clk 0:00:34]} 51. Kd3 {[%clk 0:00:06]}  Ra6 {[%clk 0:00:35]} 1/2-1/2


[Site "https://www.chess.com"]

[Event "Titled Tuesday Blitz October 12 2021"]
[White "Yeletsky, Ivan"]
[Black "Nozdrachev, Leonid"]
[WhiteFideId "24180327"]
[BlackFideId "24113433"]
[WhiteElo "2352"]
[BlackElo "2124"]
[Result "1-0"]
[Round "04"]
[TimeControl "180+1"]
[Date "2021.10.12"]
[WhiteClock "0:02:11"]
[BlackClock "0:00:41"]

1. d4 {[%clk 0:03:00]}  Nf6 {[%clk 0:02:55]} 2. c4 {[%clk 0:03:00]}  e6 {[%clk 0:02:54]} 3. Nf3 {[%clk 0:03:01]}  d5 {[%clk 0:02:53]} 4. g3 {[%clk 0:03:01]}  Be7 {[%clk 0:02:53]} 5. Bg2 {[%clk 0:03:00]}  O-O {[%clk 0:02:52]} 6. Nc3 {[%clk 0:03:01]}  dxc4 {[%clk 0:02:49]} 7. Ne5 {[%clk 0:03:00]}  Nc6 {[%clk 0:02:48]} 8. Bxc6 {[%clk 0:03:00]}  bxc6 {[%clk 0:02:49]} 9. Nxc6 {[%clk 0:03:01]}  Qe8 {[%clk 0:02:48]} 10. Nxe7+ {[%clk 0:03:01]}  Qxe7 {[%clk 0:02:49]} 11. Qa4 {[%clk 0:03:02]}  e5 {[%clk 0:02:47]} 12. dxe5 {[%clk 0:03:00]}  Qxe5 {[%clk 0:02:48]} 13. Qxc4 {[%clk 0:03:00]}  Be6 {[%clk 0:02:48]} 14. Qf4 {[%clk 0:03:00]}  Qxf4 {[%clk 0:02:32]} 15. Bxf4 {[%clk 0:03:00]}  Nd5 {[%clk 0:02:32]} 16. Nxd5 {[%clk 0:02:56]}  Bxd5 {[%clk 0:02:33]} 17. f3 {[%clk 0:02:56]}  Rfe8 {[%clk 0:02:32]} 18. Kf2 {[%clk 0:02:56]}  c6 {[%clk 0:02:13]} 19. Bd2 {[%clk 0:02:52]}  f5 {[%clk 0:02:10]} 20. Bc3 {[%clk 0:02:50]}  g5 {[%clk 0:02:03]} 21. h3 {[%clk 0:02:47]}  Kf7 {[%clk 0:01:59]} 22. g4 {[%clk 0:02:43]}  f4 {[%clk 0:01:56]} 23. h4 {[%clk 0:02:43]}  h6 {[%clk 0:01:36]} 24. hxg5 {[%clk 0:02:42]}  hxg5 {[%clk 0:01:37]} 25. Rh7+ {[%clk 0:02:42]}  Ke6 {[%clk 0:01:35]} 26. Rah1 {[%clk 0:02:42]}  Kd6 {[%clk 0:01:32]} 27. R1h6+ {[%clk 0:02:27]}  Kc5 {[%clk 0:01:32]} 28. Rg7 {[%clk 0:02:21]}  Rg8 {[%clk 0:01:23]} 29. Rhg6 {[%clk 0:02:17]}  Rxg7 {[%clk 0:01:19]} 30. Rxg7 {[%clk 0:02:18]}  Bxa2 {[%clk 0:01:14]} 31. Rxg5+ {[%clk 0:02:17]}  Bd5 {[%clk 0:01:15]} 32. Rf5 {[%clk 0:02:17]}  Kc4 {[%clk 0:01:10]} 33. Rxf4+ {[%clk 0:02:17]}  Kb3 {[%clk 0:01:10]} 34. Rb4+ {[%clk 0:02:17]}  Kc2 {[%clk 0:01:10]} 35. e4 {[%clk 0:02:17]}  Bb3 {[%clk 0:01:10]} 36. Ke3 {[%clk 0:02:17]}  a5 {[%clk 0:01:08]} 37. Rb6 {[%clk 0:02:16]}  c5 {[%clk 0:01:05]} 38. Rb5 {[%clk 0:02:17]}  c4 {[%clk 0:01:02]} 39. g5 {[%clk 0:02:14]}  a4 {[%clk 0:01:01]} 40. Bd4 {[%clk 0:02:13]}  Rd8 {[%clk 0:00:48]} 41. g6 {[%clk 0:02:09]}  Rxd4 {[%clk 0:00:47]} 42. Kxd4 {[%clk 0:02:10]}  Kxb2 {[%clk 0:00:47]} 43. g7 {[%clk 0:02:10]}  a3 {[%clk 0:00:42]} 44. g8=Q {[%clk 0:02:11]}  a2 {[%clk 0:00:43]} 45. Qg2+ {[%clk 0:02:11]}  Ka3 {[%clk 0:00:41]} 46. Ra5+ {[%clk 0:02:11]} 1-0


[Site "https://www.chess.com"]

[Event "Titled Tuesday Blitz October 12 2021"]
[White "Yoo, Christopher Woojin"]
[Black "Skatchkov, Valery"]
[WhiteFideId "30909694"]
[BlackFideId "24195812"]
[WhiteElo "2105"]
[BlackElo "2195"]
[Result "1-0"]
[Round "04"]
[TimeControl "180+1"]
[Date "2021.10.12"]
[WhiteClock "0:00:17"]
[BlackClock "0:00:20"]

1. e4 {[%clk 0:03:00]}  e5 {[%clk 0:02:48]} 2. Nf3 {[%clk 0:03:00]}  Nf6 {[%clk 0:02:48]} 3. Nc3 {[%clk 0:02:59]}  Nc6 {[%clk 0:02:48]} 4. a4 {[%clk 0:03:00]}  g6 {[%clk 0:02:46]} 5. Bc4 {[%clk 0:02:58]}  Bg7 {[%clk 0:02:46]} 6. d3 {[%clk 0:02:58]}  O-O {[%clk 0:02:46]} 7. O-O {[%clk 0:02:59]}  h6 {[%clk 0:02:45]} 8. h3 {[%clk 0:02:59]}  d6 {[%clk 0:02:45]} 9. Be3 {[%clk 0:02:53]}  Be6 {[%clk 0:02:45]} 10. Bxe6 {[%clk 0:02:48]}  fxe6 {[%clk 0:02:46]} 11. d4 {[%clk 0:02:47]}  exd4 {[%clk 0:02:44]} 12. Nxd4 {[%clk 0:02:47]}  Nxd4 {[%clk 0:02:44]} 13. Bxd4 {[%clk 0:02:47]}  e5 {[%clk 0:02:44]} 14. Be3 {[%clk 0:02:43]}  Nh5 {[%clk 0:02:43]} 15. g3 {[%clk 0:02:17]}  Kh7 {[%clk 0:02:41]} 16. Kh2 {[%clk 0:02:16]}  Bf6 {[%clk 0:02:27]} 17. Nd5 {[%clk 0:02:05]}  Bg5 {[%clk 0:02:27]} 18. f4 {[%clk 0:02:04]}  exf4 {[%clk 0:02:24]} 19. gxf4 {[%clk 0:02:05]}  Bh4 {[%clk 0:02:24]} 20. f5 {[%clk 0:01:59]}  Qe8 {[%clk 0:02:20]} 21. Qg4 {[%clk 0:01:43]}  Qe5+ {[%clk 0:02:12]} 22. Nf4 {[%clk 0:01:32]}  Bg3+ {[%clk 0:01:56]} 23. Kh1 {[%clk 0:01:24]}  Qxe4+ {[%clk 0:01:53]} 24. Rf3 {[%clk 0:01:25]}  Bxf4 {[%clk 0:01:10]} 25. Qxg6+ {[%clk 0:01:21]}  Kh8 {[%clk 0:01:09]} 26. Qxh5 {[%clk 0:01:18]}  Bxe3 {[%clk 0:01:09]} 27. Re1 {[%clk 0:01:17]}  Qe8 {[%clk 0:00:52]} 28. Qg4 {[%clk 0:01:02]}  Rg8 {[%clk 0:00:22]} 29. Rexe3 {[%clk 0:00:27]}  Rxg4 {[%clk 0:00:21]} 30. Rxe8+ {[%clk 0:00:27]}  Rxe8 {[%clk 0:00:22]} 31. hxg4 {[%clk 0:00:28]}  Re2 {[%clk 0:00:22]} 32. Rb3 {[%clk 0:00:22]}  b6 {[%clk 0:00:20]} 33. Rc3 {[%clk 0:00:23]}  c5 {[%clk 0:00:19]} 34. Rd3 {[%clk 0:00:23]}  Rxc2 {[%clk 0:00:20]} 35. Rxd6 {[%clk 0:00:23]}  Rxb2 {[%clk 0:00:21]} 36. Rxh6+ {[%clk 0:00:22]}  Kg7 {[%clk 0:00:21]} 37. Rc6 {[%clk 0:00:21]}  Rb4 {[%clk 0:00:21]} 38. Rg6+ {[%clk 0:00:14]}  Kf7 {[%clk 0:00:20]} 39. Kg2 {[%clk 0:00:15]}  Rxa4 {[%clk 0:00:20]} 40. Kg3 {[%clk 0:00:15]}  c4 {[%clk 0:00:20]} 41. Rc6 {[%clk 0:00:15]}  b5 {[%clk 0:00:20]} 42. g5 {[%clk 0:00:16]}  Ra3+ {[%clk 0:00:20]} 43. Kg4 {[%clk 0:00:16]}  c3 {[%clk 0:00:19]} 44. g6+ {[%clk 0:00:16]}  Kg7 {[%clk 0:00:19]} 45. Kg5 {[%clk 0:00:17]}  b4 {[%clk 0:00:20]} 46. f6+ {[%clk 0:00:17]} 1-0


[Site "https://www.chess.com"]

[Event "Titled Tuesday Blitz October 12 2021"]
[White "Bartel, Michal"]
[Black "Wagner, Dennis"]
[WhiteFideId "1119257"]
[BlackFideId "24650684"]
[WhiteElo "2211"]
[BlackElo "2355"]
[Result "1-0"]
[Round "05"]
[TimeControl "180+1"]
[Date "2021.10.12"]
[WhiteClock "0:02:09"]
[BlackClock "0:00:53"]

1. e4 {[%clk 0:03:00]}  e5 {[%clk 0:02:59]} 2. Nc3 {[%clk 0:02:59]}  Nf6 {[%clk 0:02:59]} 3. g3 {[%clk 0:02:59]}  Bc5 {[%clk 0:02:58]} 4. Bg2 {[%clk 0:03:00]}  O-O {[%clk 0:02:58]} 5. Nge2 {[%clk 0:03:00]}  c6 {[%clk 0:02:54]} 6. O-O {[%clk 0:03:00]}  d5 {[%clk 0:02:53]} 7. exd5 {[%clk 0:03:01]}  cxd5 {[%clk 0:02:54]} 8. d4 {[%clk 0:03:01]}  exd4 {[%clk 0:02:55]} 9. Nxd4 {[%clk 0:03:01]}  Bxd4 {[%clk 0:02:56]} 10. Qxd4 {[%clk 0:03:01]}  Nc6 {[%clk 0:02:56]} 11. Qd1 {[%clk 0:02:59]}  d4 {[%clk 0:02:56]} 12. Ne2 {[%clk 0:02:58]}  Bg4 {[%clk 0:02:50]} 13. h3 {[%clk 0:02:57]}  Bh5 {[%clk 0:02:31]} 14. g4 {[%clk 0:02:55]}  Bg6 {[%clk 0:02:31]} 15. Bg5 {[%clk 0:02:49]}  Re8 {[%clk 0:01:40]} 16. Re1 {[%clk 0:02:43]}  Bxc2 {[%clk 0:01:29]} 17. Qxc2 {[%clk 0:02:40]}  d3 {[%clk 0:01:29]} 18. Qd2 {[%clk 0:02:32]}  dxe2 {[%clk 0:01:22]} 19. Rxe2 {[%clk 0:02:32]}  Qxd2 {[%clk 0:01:16]} 20. Rxd2 {[%clk 0:02:31]}  Ne4 {[%clk 0:01:17]} 21. Bxe4 {[%clk 0:02:28]}  Rxe4 {[%clk 0:01:18]} 22. Rad1 {[%clk 0:02:22]}  h6 {[%clk 0:01:09]} 23. Be3 {[%clk 0:02:22]}  a5 {[%clk 0:01:00]} 24. Rd7 {[%clk 0:02:22]}  Rb4 {[%clk 0:01:00]} 25. b3 {[%clk 0:02:20]}  a4 {[%clk 0:01:00]} 26. Rc7 {[%clk 0:02:11]}  Rxb3 {[%clk 0:00:56]} 27. axb3 {[%clk 0:02:12]}  axb3 {[%clk 0:00:55]} 28. Rxb7 {[%clk 0:02:10]}  Na5 {[%clk 0:00:53]} 29. Rb5 {[%clk 0:02:09]} 1-0


[Site "https://www.chess.com"]